fUST/lending_fUST_20251019
["ID","MTS","AMOUNT","RATE_DAILY","PERIOD"]
[391821860,1760883039101,-187.0,0.00037767,2]
[391821861,1760883039112,-161.23774,0.00038,120]
[391821862,1760883039123,-187.0,0.00038045,2]
[391821863,1760883039135,-312.0,0.00038205,7]
[391821864,1760883039145,-1607.40020541,0.00038222,2]
[391821865,1760883039158,-198.68,0.00038248,2]
[391821866,1760883039168,-982.0,0.00038248,2]
[391821867,1760883039180,-240.0,0.00038254,2]
[391821868,1760883039191,-310.0,0.00038274,7]
[391821869,1760883039202,-1999.0,0.00038275,120]
[391821870,1760883039217,-500.0,0.00038337,3]
[391821871,1760883039228,-151.0,0.00038337,3]
[391821872,1760883039239,-152.08024911,0.00038337,3]
[391821873,1760883039251,-151.24075468,0.00038337,2]
[391821874,1760883039261,-151.0,0.00038337,3]
[391821875,1760883039272,-151.0,0.00038337,3]
[391821876,1760883039283,-151.0,0.00038337,3]
[391821877,1760883039296,-500.50711057,0.00038356,2]
[391821878,1760883039306,-500.0,0.00038356,30]
[391821879,1760883039317,-500.0,0.00038356,30]
[391821880,1760883039328,-500.0,0.00038356,30]
[391821881,1760883039338,-500.0,0.00038356,30]
[391821882,1760883039350,-500.0,0.00038356,30]
[391821883,1760883039360,-500.07563961,0.00038356,30]
[391821884,1760883039370,-500.0,0.00038356,30]
[391821885,1760883039381,-520.2728616,0.00038356,30]
[391821886,1760883039391,-300.0,0.00038356,30]
[391821887,1760883039401,-500.0,0.00038356,2]
[391821888,1760883039411,-501.38222075,0.00038356,2]
[391821889,1760883039421,-500.0,0.00038356,30]
[391821890,1760883039432,-500.0,0.00038356,30]
[391821891,1760883039442,-202.7118563,0.00038356,30]
[391821892,1760883039451,-500.0,0.00038356,2]
[391821893,1760883039462,-500.0,0.00038356,2]
[391821894,1760883039474,-500.0,0.00038356,2]
[391821895,1760883039484,-500.0,0.00038356,2]
[391821896,1760883039494,-567.88,0.00038356,2]
[391821897,1760883039506,-501.85022666,0.00038356,2]
[391821898,1760883039517,-500.0,0.00038356,2]
[391821899,1760883039528,-500.0,0.00038356,2]
[391821900,1760883039538,-500.0,0.00038356,2]
[391821901,1760883039549,-500.0,0.00038356,2]
[391821902,1760883039559,-1000.0,0.00038356,2]
[391821903,1760883039570,-1000.0,0.00038356,2]
[391821904,1760883039581,-1000.0,0.00038356,2]
[391821905,1760883039592,-1000.0,0.00038356,2]
[391821906,1760883039603,-913.77230987,0.00038356,2]
[391821907,1760883039614,-500.0,0.00038356,30]
[391821908,1760883039625,-194.13823177,0.00038356,30]
[391821909,1760883039636,-500.0,0.00038356,30]
[391821910,1760883039646,-500.0,0.00038356,30]
[391821911,1760883039657,-454.56611338,0.00038356,30]
[391821912,1760883039667,-500.0,0.00038356,2]
[391821913,1760883039678,-151.0,0.00038356,30]
[391821914,1760883039689,-151.0,0.00038356,30]
[391821915,1760883039701,-512.86062253,0.00038356,30]
[391821916,1760883039712,-199.1489166,0.00038356,30]
[391821917,1760883039722,-151.0,0.00038356,30]
[391821918,1760883039732,-164.14676582,0.00038356,30]
[391821919,1760883039742,-151.52159412,0.00038356,30]
[391821920,1760883039752,-152.73024621,0.00038356,30]
[391821921,1760883039762,-152.25108244,0.00038356,30]
[391821922,1760883039772,-151.0,0.00038356,30]
[391821923,1760883039782,-151.38252694,0.00038356,30]
[391821924,1760883039793,-500.0,0.00038356,30]
[391821925,1760883039804,-618.70622354,0.00038356,30]
[391821926,1760883039815,-527.76,0.00038356,30]
[391821927,1760883039826,-527.76,0.00038356,30]
[391821928,1760883039837,-527.76,0.00038356,30]
[391821929,1760883039849,-527.76,0.00038356,30]
[391821930,1760883039859,-527.76,0.00038356,30]
[391821931,1760883039870,-527.76,0.00038356,30]
[391821932,1760883039881,-527.76,0.00038356,30]
[391821933,1760883039891,-527.76,0.00038356,30]
[391821934,1760883039901,-527.76,0.00038356,30]
[391821935,1760883039912,-527.76,0.00038356,30]
[391821936,1760883039922,-527.76,0.00038356,30]
[391821937,1760883039934,-527.76,0.00038356,30]
[391821938,1760883039944,-527.76,0.00038356,30]
[391821940,1760883039956,-527.76,0.00038356,30]
[391821941,1760883039966,-527.76,0.00038356,30]
[391821943,1760883039976,-527.76,0.00038356,30]
[391821944,1760883039988,-527.76,0.00038356,30]
[391821945,1760883039999,-527.76,0.00038356,30]
[391821946,1760883040009,-527.76,0.00038356,30]
[391821947,1760883040020,-527.76,0.00038356,30]
[391821949,1760883040030,-527.76,0.00038356,30]
[391821951,1760883040040,-527.76,0.00038356,30]
[391821954,1760883040051,-527.76,0.00038356,30]
[391821956,1760883040061,-527.91,0.00038356,30]
[391821957,1760883040071,-500.0,0.00038356,30]
[391821958,1760883040083,-500.0,0.00038356,30]
[391821959,1760883040093,-500.0,0.00038356,30]
[391821960,1760883040105,-500.0,0.00038356,30]
[391821961,1760883040116,-500.0,0.00038356,30]
[391821962,1760883040126,-485.68517748,0.00038356,30]
[391821963,1760883040136,-3651.25,0.00038356,30]
[391821964,1760883040147,-3651.25,0.00038356,30]
[391821965,1760883040157,-3651.25,0.00038356,30]
[391821967,1760883040167,-3651.25,0.00038356,30]
[391821968,1760883040176,-3651.25,0.00038356,30]
[391821971,1760883040188,-3651.25,0.00038356,30]
[391821973,1760883040198,-3651.25,0.00038356,30]
[391821975,1760883040210,-3651.25,0.00038356,30]
[391821977,1760883040223,-3651.25,0.00038356,30]
[391821978,1760883040233,-3651.25,0.00038356,30]
[391821980,1760883040243,-3651.25,0.00038356,30]
[391821992,1760883040385,-3651.25,0.00038356,30]
[391821993,1760883040394,-3651.25,0.00038356,30]
[391821994,1760883040404,-3651.25,0.00038356,30]
[391821995,1760883040414,-3651.25,0.00038356,30]
[391821996,1760883040425,-3651.25,0.00038356,30]
[391821997,1760883040436,-3651.25,0.00038356,30]
[391821998,1760883040446,-3651.25,0.00038356,30]
[391821999,1760883040456,-3651.25,0.00038356,30]
[391822000,1760883040465,-3651.25,0.00038356,30]
[391822001,1760883040474,-3651.25,0.00038356,30]
[391822002,1760883040484,-3651.25,0.00038356,30]
[391822003,1760883040494,-3651.25,0.00038356,30]
[391822004,1760883040504,-3651.44763891,0.00038356,30]
[391822005,1760883040514,-575.62135723,0.00038356,30]
[391822006,1760883040523,-500.0,0.00038356,30]
[391822007,1760883040533,-500.0,0.00038356,30]
[391822008,1760883040542,-500.0,0.00038356,30]
[391822010,1760883040552,-500.0,0.00038356,30]
[391822011,1760883040561,-500.0,0.00038356,30]
[391822012,1760883040571,-500.0,0.00038356,30]
[391822013,1760883040580,-500.0,0.00038356,30]
[391822014,1760883040590,-500.0,0.00038356,30]
[391822015,1760883040599,-500.0,0.00038356,30]
[391822017,1760883040609,-500.0,0.00038356,30]
[391822019,1760883040618,-500.0,0.00038356,30]
[391822021,1760883040628,-500.0,0.00038356,30]
[391822022,1760883040637,-500.0,0.00038356,30]
[391822023,1760883040646,-556.18062608,0.00038356,30]
[391822025,1760883040655,-500.0,0.00038356,30]
[391822027,1760883040665,-500.0,0.00038356,30]
[391822028,1760883040674,-500.0,0.00038356,30]
[391822029,1760883040684,-500.0,0.00038356,30]
[391822030,1760883040694,-500.0,0.00038356,30]
[391822031,1760883040706,-500.0,0.00038356,30]
[391822032,1760883040716,-500.0,0.00038356,30]
[391822033,1760883040726,-500.0,0.00038356,30]
[391822034,1760883040735,-500.0,0.00038356,30]
[391822035,1760883040744,-500.0,0.00038356,30]
[391822036,1760883040754,-165.37726375,0.00038356,2]
[391822037,1760883040763,-500.0,0.00038356,30]
[391822038,1760883040772,-500.0,0.00038356,30]
[391822039,1760883040782,-500.0,0.00038356,30]
[391822040,1760883040791,-500.0,0.00038356,30]
[391822041,1760883040801,-500.0,0.00038356,30]
[391822042,1760883040810,-500.0,0.00038356,30]
[391822043,1760883040820,-500.0,0.00038356,30]
[391822044,1760883040830,-500.0,0.00038356,30]
[391822045,1760883040840,-202.58169379,0.00038356,30]
[391822046,1760883040850,-500.0,0.00038356,30]
[391822047,1760883040861,-500.0,0.00038356,30]
[391822048,1760883040871,-500.0,0.00038356,30]
[391822049,1760883040882,-500.0,0.00038356,30]
[391822050,1760883040891,-500.0,0.00038356,30]
[391822051,1760883040901,-500.0,0.00038356,30]
[391822052,1760883040911,-500.0,0.00038356,30]
[391822053,1760883040921,-500.0,0.00038356,30]
[391822054,1760883040931,-500.0,0.00038356,30]
[391822055,1760883040941,-500.0,0.00038356,30]
[391822056,1760883040950,-500.0,0.00038356,30]
[391822057,1760883040959,-500.0,0.00038356,30]
[391822058,1760883040969,-500.0,0.00038356,30]
[391822059,1760883040979,-500.0,0.00038356,30]
[391822060,1760883040990,-500.0,0.00038356,30]
[391822061,1760883041000,-500.0,0.00038356,30]
[391822062,1760883041010,-500.0,0.00038356,30]
[391822063,1760883041019,-500.0,0.00038356,30]
[391822064,1760883041029,-500.0,0.00038356,30]
[391822065,1760883041038,-500.0,0.00038356,30]
[391822066,1760883041048,-500.0,0.00038356,30]
[391822067,1760883041058,-500.0,0.00038356,30]
[391822068,1760883041067,-500.0,0.00038356,30]
[391822069,1760883041077,-533.69637246,0.00038356,30]
[391822070,1760883041088,-500.0,0.00038356,30]
[391822071,1760883041097,-500.0,0.00038356,30]
[391822072,1760883041105,-600.00262278,0.00038356,30]
[391822073,1760883041114,-4503.6,0.00038356,30]
[391822074,1760883041124,-4503.6,0.00038356,30]
[391822075,1760883041133,-4503.6,0.00038356,30]
[391822076,1760883041142,-4503.6,0.00038356,30]
[391822077,1760883041152,-4503.6,0.00038356,30]
[391822078,1760883041161,-4503.6,0.00038356,30]
[391822079,1760883041171,-4503.6,0.00038356,30]
[391822080,1760883041181,-4503.6,0.00038356,30]
[391822081,1760883041190,-4503.6,0.00038356,30]
[391822082,1760883041200,-4503.6,0.00038356,30]
[391822083,1760883041214,-4503.6,0.00038356,30]
[391822084,1760883041223,-4503.6,0.00038356,30]
[391822085,1760883041232,-4503.6,0.00038356,30]
[391822086,1760883041242,-4503.6,0.00038356,30]
[391822087,1760883041253,-4503.6,0.00038356,30]
[391822088,1760883041262,-4503.6,0.00038356,30]
[391822089,1760883041272,-4503.6,0.00038356,30]
[391822090,1760883041283,-500.0,0.00038356,30]
[391822091,1760883041292,-4503.6,0.00038356,30]
[391822092,1760883041302,-500.0,0.00038356,30]
[391822093,1760883041312,-4503.6,0.00038356,30]
[391822094,1760883041321,-4503.6,0.00038356,30]
[391822095,1760883041331,-500.0,0.00038356,30]
[391822096,1760883041340,-500.0,0.00038356,30]
[391822097,1760883041350,-4503.6,0.00038356,30]
[391822098,1760883041360,-188.39929041,0.00038356,30]
[391822099,1760883041370,-4503.6,0.00038356,30]
[391822100,1760883041380,-4503.6,0.00038356,30]
[391822101,1760883041389,-4503.8,0.00038356,30]
[391822102,1760883041399,-500.0,0.00038356,30]
[391822103,1760883041408,-500.0,0.00038356,30]
[391822104,1760883041417,-500.0,0.00038356,30]
[391822105,1760883041427,-503.44024806,0.00038373,5]
[391822106,1760883041438,-500.0,0.00038373,5]
[391822107,1760883041447,-343.18846171,0.00038373,5]
[391822108,1760883041456,-501.12879575,0.00038373,5]
[391822109,1760883041466,-500.0,0.00038392,3]
[391822110,1760883041475,-151.0,0.00038392,3]
[391822111,1760883041485,-151.0,0.00038411,30]
[391822112,1760883041496,-151.0,0.00038411,30]
[391822113,1760883041506,-500.0,0.00038447,3]
[391822114,1760883041516,-198.19651247,0.00038447,3]
[391822115,1760883041527,-198.0,0.00038466,30]
[391822116,1760883041537,-151.0,0.00038466,30]
[391822117,1760883041547,-312.0,0.00038497,2]
[391822118,1760883041557,-500.0,0.00038501,3]
[391822119,1760883041566,-187.0,0.0003852,30]
[391822120,1760883041576,-500.0,0.00038556,3]
[391822121,1760883041585,-500.0,0.00038611,3]
[391822122,1760883041595,-310.0,0.00038642,7]
[391822123,1760883041604,-500.0,0.00038666,3]
[391822124,1760883041614,-3998.9,0.0003869,2]
[391822125,1760883041623,-198.0,0.0003869,49]
[391822126,1760883041632,-313.30320854,0.00038696,2]
[391822127,1760883041642,-500.0,0.00038721,3]
[391822128,1760883041651,-500.0,0.00038775,3]
[391822129,1760883041660,-178.94658419,0.00038801,14]
[391822130,1760883041670,-330.0,0.00038801,14]
[391822131,1760883041680,-330.0,0.00038801,14]
[391822132,1760883041690,-330.0,0.00038801,14]
[391822133,1760883041699,-330.0,0.00038801,14]
[391822134,1760883041709,-330.0,0.00038801,14]
[391822135,1760883041719,-330.0,0.00038801,14]
[391822136,1760883041728,-330.0,0.00038801,14]
[391822137,1760883041737,-330.0,0.00038801,14]
[391822138,1760883041746,-330.0,0.00038801,14]
[391822139,1760883041756,-330.0,0.00038801,14]
[391822140,1760883041767,-330.0,0.00038801,14]
[391822141,1760883041777,-330.0,0.00038801,14]
[391822142,1760883041787,-330.0,0.00038801,14]
[391822143,1760883041797,-330.0,0.00038801,14]
[391822144,1760883041806,-330.0,0.00038801,14]
[391822145,1760883041815,-330.0,0.00038801,14]
[391822146,1760883041825,-330.0,0.00038801,14]
[391822147,1760883041835,-330.0,0.00038801,14]
[391822148,1760883041845,-330.0,0.00038801,14]
[391822149,1760883041855,-330.0,0.00038801,14]
[391822150,1760883041864,-330.0,0.00038801,14]
[391822151,1760883041874,-330.0,0.00038801,14]
[391822152,1760883041884,-330.0,0.00038801,14]
[391822153,1760883041894,-330.0,0.00038801,14]
[391822154,1760883041903,-330.0,0.00038801,14]
[391822155,1760883041913,-330.0,0.00038801,14]
[391822156,1760883041923,-330.0,0.00038801,14]
[391822157,1760883041932,-284.07106432,0.00038801,14]
[391822158,1760883041942,-172.17977529,0.00038801,14]
[391822159,1760883041951,-265.0,0.00038803,120]
[391822160,1760883041960,-310.0,0.00038818,2]
[391822161,1760883041972,-500.0,0.0003883,3]
[391822162,1760883041981,-310.0,0.00038852,120]
[391822163,1760883041992,-500.0,0.00038885,3]
[391822164,1760883042002,-1007.57033413,0.00038921,5]
[391822165,1760883042013,-500.0,0.0003894,3]
[391822166,1760883042023,-500.0,0.00038995,3]
[391822167,1760883042035,-296.0,0.0003903,120]
[391822168,1760883042045,-500.0,0.00039049,3]
[391822169,1760883042055,-500.0,0.0003908,7]
[391822170,1760883042064,-163.0,0.00039101,14]
[391822171,1760883042073,-163.0,0.00039101,14]
[391822172,1760883042084,-500.0,0.00039104,3]
[391822173,1760883042094,-800.0,0.00039154,7]
[391822174,1760883042103,-310.0,0.00039158,2]
[391822175,1760883042112,-500.0,0.00039159,3]
[391822176,1760883042122,-809.17930869,0.00039194,7]
[391822177,1760883042131,-20252.10712745,0.000392,120]
[391822178,1760883042141,-500.0,0.00039214,3]
[391822179,1760883042150,-200.0,0.00039224,7]
[391822180,1760883042159,-168.0,0.00039268,2]
[391822181,1760883042171,-151.0,0.00039268,3]
[391822182,1760883042182,-151.0,0.00039268,3]
[391822183,1760883042191,-165.02581476,0.00039268,3]
[391822184,1760883042201,-151.0,0.00039268,3]
[391822185,1760883042217,-151.0,0.00039268,3]
[391822186,1760883042226,-154.09359071,0.00039268,3]
[391822187,1760883042237,-185.11920639,0.00039269,3]
[391822188,1760883042248,-168.0,0.00039321,2]
[391822189,1760883042257,-151.0,0.00039323,3]
[391822190,1760883042266,-151.0,0.00039323,3]
[391822191,1760883042276,-1000.0,0.0003933,120]
[391822192,1760883042285,-1000.0,0.0003933,120]
[391822193,1760883042295,-1000.0,0.0003933,120]
[391822194,1760883042304,-1000.0,0.0003933,120]
[391822195,1760883042316,-1000.0,0.0003933,120]
[391822196,1760883042326,-1000.0,0.0003933,120]
[391822197,1760883042335,-1000.0,0.0003933,120]
[391822198,1760883042344,-1000.0,0.0003933,120]
[391822199,1760883042354,-1000.0,0.0003933,120]
[391822200,1760883042364,-1000.0,0.0003933,120]
[391822201,1760883042373,-1000.0,0.0003933,120]
[391822202,1760883042382,-1000.0,0.0003933,120]
[391822203,1760883042392,-1000.0,0.0003933,120]
[391822204,1760883042402,-190.0811961,0.00039342,30]
[391822205,1760883042411,-153.0,0.00039342,30]
[391822206,1760883042421,-190.0811961,0.00039342,30]
[391822207,1760883042431,-190.0811961,0.00039342,30]
[391822208,1760883042441,-190.0811961,0.00039342,30]
[391822209,1760883042451,-190.0811961,0.00039342,30]
[391822210,1760883042461,-190.8932987,0.00039342,30]
[391822211,1760883042471,-9064.12784445,0.00039344,2]
[391822212,1760883042480,-1607.40020541,0.00039344,2]
[391822213,1760883042489,-205.08,0.00039344,120]
[391822214,1760883042499,-800.0,0.00039356,7]
[391822215,1760883042508,-1999.0,0.00039371,120]
[391822216,1760883042517,-151.0,0.00039378,3]
[391822217,1760883042527,-151.0,0.00039378,3]
[391822218,1760883042536,-800.0,0.00039412,7]
[391822219,1760883042545,-800.78977952,0.00039416,7]
[391822220,1760883042555,-198.0,0.00039432,3]
[391822221,1760883042564,-245.0,0.00039432,3]
[391822222,1760883042573,-202.86660763,0.00039443,30]
[391822223,1760883042583,-514.84070869,0.00039443,7]
[391822224,1760883042592,-533.88981491,0.00039443,7]
[391822225,1760883042601,-553.64373807,0.00039443,7]
[391822226,1760883042611,-574.12855637,0.00039443,7]
[391822227,1760883042620,-595.37131296,0.00039443,7]
[391822228,1760883042630,-301.94445769,0.00039443,7]
[391822229,1760883042639,-617.40005154,0.00039443,7]
[391822230,1760883042648,-2124.49502072,0.00039443,7]
[391822231,1760883042658,-640.24385345,0.00039443,7]
[391822232,1760883042667,-663.93287602,0.00039443,7]
[391822233,1760883042676,-776.62890885,0.00039443,7]
[391822234,1760883042685,-250.0,0.00039443,7]
[391822235,1760883042695,-250.0,0.00039443,7]
[391822236,1760883042704,-501.69087149,0.00039443,5]
[391822237,1760883042714,-502.2758091,0.00039443,5]
[391822238,1760883042723,-6557.7543,0.00039444,7]
[391822239,1760883042733,-936572.55655304,0.00039444,7]
[391822240,1760883042789,-540.75,0.00039444,7]
[391822241,1760883042801,-37812.13345,0.00039444,7]
[391822302,1760883043482,-803.77226077,0.00039444,7]
[391822304,1760883043496,-3992.97584033,0.00039444,7]
[391822324,1760883078774,367.69,0.00025781,2]
[391822325,1760883161074,363.01,0.00023115,2]
[391822326,1760883161522,726.02,0.00025216,2]
[391822329,1760883243412,349.15,0.00023477,2]
[391822330,1760883243816,698.3,0.00025611,2]
[391822333,1760883262611,150.0,0.00025205,2]
[391822334,1760883263140,172.5,0.00025805,2]
[391822337,1760883324113,335.82,0.00023372,2]
[391822338,1760883324538,671.64,0.00025497,2]
[391822339,1760883406774,323.0,0.00023417,2]
[391822340,1760883407210,645.99,0.00025546,2]
[391822341,1760883488794,310.66,0.00022564,2]
[391822342,1760883489262,621.33,0.00024615,2]
[391822343,1760883570328,298.8,0.00022226,2]
[391822344,1760883570772,597.61,0.00024247,2]
[391822345,1760883652135,287.39,0.00022182,2]
[391822346,1760883652614,574.79,0.00024199,2]
[391822348,1760883734774,276.42,0.00022618,2]
[391822349,1760883735224,552.84,0.00024675,2]
[391822352,1760883816568,265.87,0.00022496,2]
[391822353,1760883817033,531.73,0.00024541,2]
[391822354,1760883879031,1479.53,0.000252,14]
[391822355,1760883883015,150.0,0.00025205,2]
[391822356,1760883884157,172.5,0.00025805,2]
[391822357,1760883897817,255.72,0.0002296,2]
[391822358,1760883898276,511.43,0.00025047,2]
[391822362,1760883963504,417.15472785,0.00026,2]
[391822363,1760883978160,296.85,0.00022092,2]
[391822364,1760883978590,465.29467518,0.00024101,2]
[391822366,1760883987685,-128.39532482,0.00024101,2]
[391822369,1760884058143,285.51,0.00022052,2]
[391822370,1760884058573,571.03,0.00024056,2]
[391822372,1760884092457,420.70328632,0.00010618,2]
[391822373,1760884094208,8722.76671368,0.000125,2]
[391822374,1760884094231,2812.80084742,0.000125,2]
[391822381,1760884138427,274.61,0.00021929,2]
[391822382,1760884138884,549.22,0.00023922,2]
[391822383,1760884142630,300.0,0.00024141,2]
[391822384,1760884183288,1000.0,0.00024,7]
[391822385,1760884201361,300.0,0.00024141,2]
[391822386,1760884202331,300.0,0.00024141,2]
[391822387,1760884202697,300.0,0.00024141,2]
[391822388,1760884202724,300.0,0.00024141,2]
[391822389,1760884204143,300.0,0.00024141,2]
[391822390,1760884204171,1200.0,0.00024141,2]
[391822391,1760884219070,264.13,0.00022396,2]
[391822444,1760884232643,-10000.01,0.00024142,2]
[391822446,1760884232653,-528.25,0.00024432,2]
[391822448,1760884232663,-214.9491171,0.00026148,2]
[391822450,1760884232672,-420.0,0.00026176,2]
[391822452,1760884232682,-420.0,0.00026176,2]
[391822454,1760884232691,-420.0,0.00026176,2]
[391822456,1760884232701,-420.0,0.00026176,2]
[391822458,1760884232711,-1680.0,0.00026295,2]
[391822460,1760884232720,-195.0,0.00026405,2]
[391822462,1760884232730,-792.38,0.00026468,2]
[391822464,1760884232739,-166.29442469,0.00026902,2]
[391822466,1760884232751,-37.61931993,0.00026999,2]
[391822468,1760884232768,-326.89562276,0.00026999,2]
[391822470,1760884232777,-722.70437724,0.00027,2]
[391822475,1760884232809,-602.61685635,0.00027,2]
[391822477,1760884232821,-1963.92091571,0.00027,2]
[391822551,1760884238558,-1583.79013717,0.00027,2]
[391822552,1760884238570,-3611.92411472,0.00027,2]
[391822553,1760884238579,-20332.58529268,0.00027002,2]
[391822554,1760884238591,-1223.3533002,0.00027002,2]
[391822555,1760884238604,-11073.66071444,0.00027002,2]
[391822556,1760884238614,-152.0,0.00027002,2]
[391822557,1760884238625,-217.5,0.00027005,2]
[391822560,1760884238634,-666.0,0.00027051,2]
[391822561,1760884238644,-408.0666537,0.00027118,30]
[391822562,1760884238654,-250.08811245,0.0002739,2]
[391822563,1760884238663,-198.61872083,0.0002739,2]
[391822564,1760884238673,-150.0,0.0002739,2]
[391822565,1760884238683,-240.0,0.00027605,2]
[391822566,1760884238693,-1200.0,0.00028204,2]
[391822567,1760884238704,-262.5,0.00028205,2]
[391822568,1760884238714,-1056.5,0.00028504,2]
[391822569,1760884238724,-285.0,0.00028805,2]
[391822570,1760884238735,-307.5,0.00029405,2]
[391822571,1760884238745,-205.42048768,0.00029487,2]
[391822572,1760884238759,-314.70224653,0.00029487,2]
[391822573,1760884238770,-535.80006847,0.000299,2]
[391822574,1760884238779,-500.0,0.00029973,3]
[391822575,1760884238789,-501.12879575,0.00029973,5]
[391822576,1760884238799,-343.18846171,0.00029973,5]
[391822577,1760884238808,-649.55,0.0002999,3]
[391822578,1760884238817,-181.1625,0.0003,2]
[391822579,1760884238829,-400000.0,0.0003,15]
[391822580,1760884238839,-296.44372343,0.0003,120]
[391822581,1760884238848,-435.28,0.0003,2]
[391822582,1760884238857,-3700.01,0.0003,7]
[391822583,1760884238868,-330.0,0.00030005,2]
[391822584,1760884238878,-501.58143597,0.0003002,5]
[391822585,1760884238887,-166.29442469,0.00030037,2]
[391822586,1760884238896,-1723.602981,0.00030137,120]
[391822587,1760884238906,-500.0,0.00030137,2]
[391822588,1760884238915,-500.0,0.00030137,2]
[391822589,1760884238925,-500.0,0.00030137,2]
[391822590,1760884238934,-500.0,0.00030137,2]
[391822591,1760884238944,-500.0,0.00030137,2]
[391822592,1760884238952,-500.0,0.00030137,2]
[391822593,1760884238961,-500.0,0.00030137,2]
[391822594,1760884238971,-500.0,0.00030137,2]
[391822595,1760884238980,-499.973,0.00030137,2]
[391822596,1760884238990,-500.0,0.00030137,2]
[391822597,1760884238999,-500.0,0.00030137,2]
[391822598,1760884239008,-500.0,0.00030137,2]
[391822599,1760884239017,-500.0,0.00030137,2]
[391822600,1760884239026,-500.0,0.00030137,2]
[391822601,1760884239036,-500.0,0.00030137,2]
[391822602,1760884239045,-500.0,0.00030137,2]
[391822603,1760884239055,-500.0,0.00030137,2]
[391822604,1760884239065,-500.0,0.00030137,2]
[391822605,1760884239074,-500.0,0.00030137,2]
[391822606,1760884239084,-500.0,0.00030137,2]
[391822607,1760884239093,-500.0,0.00030137,2]
[391822608,1760884239103,-500.0,0.00030137,2]
[391822609,1760884239112,-500.0,0.00030137,2]
[391822610,1760884239122,-500.0,0.00030137,2]
[391822611,1760884239131,-500.0,0.00030137,2]
[391822612,1760884239142,-500.0,0.00030137,2]
[391822613,1760884239151,-500.0,0.00030137,2]
[391822614,1760884239161,-500.0,0.000302,5]
[391822615,1760884239170,-953.0,0.00030454,2]
[391822616,1760884239179,-1320.63,0.0003054,2]
[391822617,1760884239189,-195.0,0.00030605,2]
[391822618,1760884239199,-507.57033413,0.00030748,5]
[391822619,1760884239210,-250.0,0.000319,2]
[391822620,1760884239221,-150.0,0.00032041,7]
[391822621,1760884239231,-1584.76,0.00032576,2]
[391822622,1760884239241,-411.53604281,0.00033272,2]
[391822623,1760884239251,-402.86590842,0.00034107,2]
[391822624,1760884239261,-900.00489688,0.00034161,30]
[391822625,1760884239271,-1848.88,0.00034612,2]
[391822626,1760884239281,-535.80006847,0.00034622,2]
[391822627,1760884239290,-470.32690606,0.00034928,2]
[391822628,1760884239299,-168.0,0.00035009,2]
[391822629,1760884239308,-1723.602981,0.0003516,120]
[391822630,1760884239316,-168.0,0.00035383,120]
[391822631,1760884239324,-168.0,0.00035386,2]
[391822632,1760884239332,-168.0,0.00035839,7]
[391822633,1760884239340,-168.0,0.00035895,2]
[391822634,1760884239349,-168.0,0.00035911,2]
[391822635,1760884239358,-168.0,0.00035934,2]
[391822636,1760884239366,-734.88579072,0.00036583,2]
[391822637,1760884239374,-2113.01,0.00036648,2]